fUSD/lending_fUSD_20250312
["ID","MTS","AMOUNT","RATE_DAILY","PERIOD"]
[355988434,1741771125022,500.0,0.00028509,120]
[355988435,1741771125294,500.0,0.00028509,120]
[355988436,1741771125572,500.0,0.00028509,120]
[355988437,1741771125892,500.0,0.00028509,120]
[355988438,1741771126139,169.37,0.00028509,120]
[355988439,1741771133764,500.0,0.00028509,120]
[355988440,1741771134029,571.63,0.00028509,120]
[355988441,1741771210643,500.0,0.00028509,120]
[355988442,1741771210885,624.56,0.00028509,120]
[355988443,1741771213529,500.0,0.00028509,120]
[355988444,1741771213762,500.0,0.00028509,120]
[355988445,1741771214103,500.0,0.00028509,120]
[355988446,1741771214383,500.0,0.00028509,120]
[355988447,1741771214648,291.24,0.00028509,120]
[355988448,1741771216812,500.0,0.00028509,120]
[355988449,1741771217166,500.0,0.00028509,120]
[355988450,1741771217420,500.0,0.00028509,120]
[355988451,1741771217675,296.9259992,0.00028509,120]
[355988453,1741771235110,500.0,0.00028509,120]
[355988454,1741771312967,1079.02,8.219e-05,2]
[355988482,1741771831994,-533.22015203,9e-05,2]
[355988483,1741771832101,-16.77984797,9e-05,2]
[355988484,1741771832111,-250.0,9.18e-05,2]
[355988485,1741771832120,-539.99,9.421e-05,2]
[355988486,1741771832130,-150.0,9.439e-05,2]
[355988487,1741771832139,-2639.38613685,9.497e-05,2]
[355988488,1741771832151,-978.12386315,9.497e-05,2]
[355988489,1741771832160,-159.98,9.533e-05,2]
[355988490,1741771832170,-176.15106505,9.533e-05,2]
[355988491,1741771832180,-635.90539341,9.533e-05,2]
[355988492,1741771832190,-133.93193021,9.562e-05,7]
[355988493,1741771832208,-16.06806979,9.562e-05,7]
[355988494,1741771832218,-150.0,9.691e-05,2]
[355988495,1741771832227,-300.0,9.755e-05,2]
[355988496,1741771832238,-8.11714593,9.756e-05,2]
[355988497,1741771832267,-438.97982347,9.756e-05,2]
[355988498,1741771832279,-6260.27219033,9.756e-05,2]
[355988531,1741771837760,-293.7686,9.756e-05,2]
[355988532,1741771837814,-500.0,9.756e-05,2]
[355988533,1741771837924,-1105.0,9.756e-05,2]
[355988534,1741771837980,-1360.45481394,9.756e-05,2]
[355988535,1741771838095,-517.34603854,9.756e-05,2]
[355988540,1741771839858,-883.25918109,9.756e-05,2]
[355988541,1741771839912,-434.54746564,9.756e-05,2]
[355988542,1741771840022,-1249.28120023,9.756e-05,2]
[355988543,1741771840077,-643.65507974,9.756e-05,2]
[355988568,1741771843942,-869.76445966,9.756e-05,2]
[355988569,1741771843990,-670.4204673,9.756e-05,2]
[355988570,1741771844002,-814.82264092,9.756e-05,2]
[355988571,1741771845930,-563.2364726,9.756e-05,2]
[355988572,1741771845942,-2971.92483236,9.756e-05,2]
[355988573,1741771845953,-468.68885309,9.756e-05,2]
[355988574,1741771845987,-2571.79073516,9.756e-05,2]
[355988575,1741771845996,-1500.0,9.79e-05,2]
[355988576,1741771846006,-276.69691382,9.797e-05,2]
[355988577,1741771846017,-723.30308618,9.797e-05,2]
[355988578,1741771846027,-150.0,9.943e-05,2]
[355988579,1741771846035,-644.52882462,0.0001,3]
[355988580,1741771846153,-355.47117538,0.0001,3]
[355988581,1741771846163,-1794.11500462,0.0001,2]
[355988596,1741772053944,500.0,0.00028509,120]
[355988597,1741772054222,500.0,0.00028509,120]
[355988598,1741772054489,500.0,0.00028509,120]
[355988599,1741772054744,389.68594808,0.00028509,120]
[355988600,1741772184311,2000.0,0.00028509,30]
[355988601,1741772191774,2000.0,0.00028509,30]
[355988602,1741772195524,500.0,0.00028509,120]
[355988603,1741772195895,500.0,0.00028509,120]
[355988604,1741772196139,324.05632445,0.00028509,120]
[355988605,1741772321283,1035.92,8.219e-05,2]
[355988617,1741772575025,698630.52235665,0.00028509,30]
[355988621,1741773032115,-1000.0,8.924e-05,2]
[355988622,1741773032124,-167.28,8.946e-05,2]
[355988623,1741773032134,-150.0,9.1e-05,2]
[355988624,1741773032143,-178.0,9.184e-05,2]
[355988625,1741773032153,-302.64449487,9.2e-05,2]
[355988626,1741773032224,-153.07550513,9.2e-05,2]
[355988627,1741773032233,-1945.52799487,9.242e-05,2]
[355988628,1741773032281,-410.11441314,9.242e-05,2]
[355988629,1741773032292,-6690.31679199,9.242e-05,2]
[355988630,1741773032301,-300.0,9.341e-05,2]
[355988631,1741773032310,-317.45440104,9.342e-05,2]
[355988632,1741773032340,-297.47992462,9.342e-05,2]
[355988633,1741773032401,-17170.28567434,9.342e-05,2]
[355988634,1741773032410,-175.33088792,9.342e-05,2]
[355988635,1741773032420,-150.0,9.343e-05,2]
[355988636,1741773032429,-150.0,9.37e-05,2]
[355988637,1741773032438,-1068.37,9.411e-05,2]
[355988638,1741773032448,-171.59,9.45e-05,2]
[355988639,1741773032457,-172.79,9.522e-05,2]
[355988640,1741773032466,-3337.5756359,9.556e-05,2]
[355988641,1741773032476,-150.0,9.562e-05,7]
[355988642,1741773032484,-150.0,9.586e-05,2]
[355988643,1741773032494,-172.79,9.641e-05,2]
[355988644,1741773032503,-172.79,9.76e-05,2]
[355988646,1741773032511,-150.0,9.829e-05,2]
[355988648,1741773032520,-172.79,9.879e-05,2]
[355988649,1741773032529,-200.0,9.9e-05,2]
[355988651,1741773032538,-172.79,9.998e-05,2]
[355988652,1741773032547,-151.0,0.0001,2]
[355988653,1741773032556,-1000.0,0.0001,3]
[355988654,1741773032565,-4000.0,0.0001,2]
[355988655,1741773032575,-6917.41720034,0.0001,2]
[355988656,1741773032584,-1000.0,0.0001004,2]
[355988657,1741773032593,-150.0,0.00010055,2]
[355988658,1741773032603,-150.165,0.00010056,2]
[355988659,1741773032612,-541.0,0.00010056,2]
[355988660,1741773032622,-904.886,0.00010056,2]
[355988661,1741773032631,-1270.0,0.00010056,2]
[355988662,1741773032641,-1428.0,0.00010056,2]
[355988663,1741773032650,-628.06840151,0.00010056,2]
[355988676,1741773037939,-432.37,0.00010056,2]
[355988677,1741773038047,-3016.56159849,0.00010056,2]
[355988678,1741773038057,-1012.0,0.00010056,2]
[355988679,1741773038066,-1117.656,0.00010056,2]
[355988680,1741773038075,-150.0,0.00010072,2]
[355988681,1741773038085,-2011.35209925,0.00010138,2]
[355988682,1741773038097,-876.05676703,0.00010138,2]
[355988683,1741773038107,-1216.788,0.00010162,2]
[355988684,1741773038116,-188.08,0.00010162,2]
[355988685,1741773038125,-1158.09182238,0.0001018,2]
[355988686,1741773038134,-826.03125989,0.0001018,2]
[355988687,1741773038145,-227.60872823,0.0001018,2]
[355988688,1741773038154,-90.05027177,0.0001018,2]
[355988689,1741773038166,-67.54802203,0.0001018,2]
[355988690,1741773038176,-357.16344617,0.0001018,2]
[355988703,1741773040131,-978.20773671,0.0001018,2]
[355988704,1741773040141,-439.725,0.0001018,2]
[355988705,1741773040150,-433.81336617,0.00010238,2]
[355988706,1741773040160,-115.00625168,0.00010275,2]
[355988707,1741773040186,-303.39056684,0.00010275,2]
[355988708,1741773040243,-1.60318148,0.00010275,2]
[355988709,1741773040252,-1111.40017022,0.00010279,2]
[355988710,1741773040261,-13593.7567403,0.00010279,2]
[355988711,1741773040271,-240.59334433,0.00010279,2]
[355988712,1741773040279,-500.0,0.00010279,2]
[355988713,1741773040288,-500.0,0.00010279,2]
[355988714,1741773040297,-566.24665483,0.00010279,2]
[355988715,1741773040306,-500.0,0.00010279,2]
[355988716,1741773040315,-500.0,0.00010279,2]
[355988717,1741773040324,-3109.44017919,0.0001028,2]
[355988718,1741773040334,-61883.20522177,0.0001028,2]
[355988719,1741773040345,-1048.78054276,0.0001028,2]
[355988720,1741773040357,-1920.5411223,0.0001028,2]
[355988721,1741773040368,-294.66,0.0001028,2]
[355988734,1741773043424,-10100.20220968,0.0001028,2]
[355988735,1741773043435,-905368.77768298,0.0001028,2]
[355988736,1741773043444,-202.0,0.0001028,2]
[355988737,1741773043453,-5488.858909,0.00010286,2]
[355988738,1741773043462,-2030.6712266,0.000103,2]
[355988739,1741773043472,-562.0,0.00010301,2]
[355988740,1741773043481,-150.0,0.00010315,2]
[355988741,1741773043491,-178.0,0.00010332,2]
[355988743,1741773043500,-1044.01,0.00010349,2]
[355988744,1741773043510,-550.0,0.00010352,2]
[355988746,1741773043519,-150.0,0.00010385,2]
[355988747,1741773043528,-1035.92,0.00010437,2]
[355988748,1741773043536,-156.587,0.00010548,2]
[355988749,1741773043546,-150.0,0.00010558,2]
[355988750,1741773043555,-150.0,0.00010582,2]
[355988751,1741773043754,-539.99,0.00010599,2]
[355988752,1741773043764,-1044.01,0.00010623,2]
[355988753,1741773043773,-470.0,0.0001063,2]
[355988754,1741773043782,-433.81336617,0.00010649,2]
[355988755,1741773043791,-257.82803868,0.000107,2]
[355988756,1741773043801,-433.81336617,0.00010707,2]
[355988757,1741773043810,-987.69444342,0.000108,2]
[355988758,1741773043820,-150.0,0.00010801,2]
[355988759,1741773043829,-5876.64758907,0.0001088,2]
[355988760,1741773043838,-1044.01,0.00010897,2]
[355988761,1741773043847,-420.02,0.000109,2]
[355988762,1741773043857,-2000.0,0.000109,3]
[355988763,1741773043867,-500.0,0.00010959,2]
[355988764,1741773043876,-500.0,0.00010959,2]
[355988765,1741773043884,-200.0,0.00010959,2]
[355988766,1741773043893,-200.0,0.00010959,2]
[355988767,1741773043903,-200.0,0.00010959,2]
[355988768,1741773043912,-200.0,0.00010959,2]
[355988769,1741773043921,-200.0,0.00010959,2]
[355988770,1741773043930,-200.0,0.00010959,2]
[355988771,1741773043939,-4000.0,0.00010959,2]
[355988772,1741773043948,-189.94,0.00010959,2]
[355988773,1741773043957,-150.0,0.00010959,2]
[355988774,1741773043967,-822.77,0.00010959,2]
[355988775,1741773043978,-8863.72,0.00010959,2]
[355988776,1741773043988,-438.48,0.00010959,2]
[355988777,1741773043997,-365.4,0.00010959,2]
[355988778,1741773044006,-304.5,0.00010959,2]
[355988779,1741773044018,-253.75,0.00010959,2]
[355988780,1741773044027,-211.46,0.00010959,2]
[355988781,1741773044036,-176.22,0.00010959,2]
[355988782,1741773044044,-881.12,0.00010959,2]
[355988783,1741773044055,-700.0,0.00011,2]
[355988784,1741773044064,-200.0,0.00011,2]
[355988785,1741773044074,-800.0,0.00011,3]
[355988786,1741773044083,-600.0,0.00011,2]
[355988787,1741773044092,-150.0,0.00011,2]
[355988788,1741773044102,-150.0,0.00011,2]
[355988789,1741773044111,-195.7197858,0.00011,2]
[355988790,1741773044121,-75112.71487943,0.00011023,2]
[355988791,1741773044130,-1000.0,0.00011039,5]
[355988792,1741773044139,-150.0,0.00011044,2]
[355988793,1741773044149,-3900.80366883,0.00011089,2]
[355988794,1741773044158,-162.380719,0.00011096,2]
[355988795,1741773044168,-114018.95336981,0.00011099,2]
[355988796,1741773044178,-125766.45061578,0.00011099,2]
[355988797,1741773044187,-152.001912,0.00011099,2]
[355988798,1741773044196,-152.159975,0.00011099,2]
[355988799,1741773044206,-353.019185,0.00011099,2]
[355988800,1741773044216,-353.019185,0.00011099,2]
[355988801,1741773044225,-151.0,0.00011099,2]
[355988802,1741773044234,-333.823575,0.00011099,2]
[355988803,1741773044243,-333.823575,0.00011099,2]
[355988804,1741773044253,-152.8119,0.00011099,2]
[355988805,1741773044263,-151.39718,0.00011099,2]
[355988806,1741773044272,-151.408942,0.00011099,2]
[355988807,1741773044282,-151.0,0.00011099,2]
[355988808,1741773044291,-151.858561,0.00011099,2]
[355988809,1741773044301,-151.980235,0.00011099,2]
[355988810,1741773044311,-151.0,0.00011099,2]
[355988811,1741773044320,-151.0,0.00011099,2]
[355988812,1741773044330,-151.0,0.00011099,2]
[355988813,1741773044340,-151.0,0.00011099,2]
[355988814,1741773044350,-151.0,0.00011099,2]
[355988815,1741773044359,-151.0,0.00011099,2]
[355988816,1741773044369,-152.209498,0.00011099,2]
[355988817,1741773044378,-152.029244,0.00011099,2]
[355988818,1741773044387,-151.0,0.00011099,2]
[355988819,1741773044396,-1757.170745,0.00011099,2]
[355988820,1741773044405,-151.0,0.00011099,2]
[355988821,1741773044415,-1757.170745,0.00011099,2]
[355988822,1741773044424,-151.0,0.00011099,2]
[355988823,1741773044434,-152.130142,0.00011099,2]
[355988824,1741773044443,-151.0,0.00011099,2]
[355988825,1741773044452,-154.60346,0.00011099,2]
[355988826,1741773044462,-1000.0,0.00011155,2]
[355988827,1741773044471,-1044.01,0.00011171,2]
[355988828,1741773044480,-502.455724,0.0001118,14]
[355988829,1741773044490,-433.81336617,0.00011225,2]
[355988830,1741773044499,-151.394496,0.0001126,2]
[355988831,1741773044508,-151.0,0.0001126,2]
[355988832,1741773044518,-153.17737,0.0001126,2]
[355988833,1741773044527,-353.019185,0.0001126,2]
[355988834,1741773044536,-353.019185,0.0001126,2]
[355988835,1741773044545,-353.019185,0.0001126,2]
[355988836,1741773044554,-353.019185,0.0001126,2]
[355988837,1741773044563,-151.0,0.0001126,2]
[355988838,1741773044572,-151.0,0.0001126,2]
[355988839,1741773044581,-151.0,0.0001126,2]
[355988840,1741773044590,-258.681368,0.0001126,2]
[355988841,1741773044599,-333.823575,0.0001126,2]
[355988842,1741773044609,-333.823575,0.0001126,2]
[355988843,1741773044619,-333.823575,0.0001126,2]
[355988844,1741773044628,-333.823575,0.0001126,2]
[355988845,1741773044638,-153.389961,0.0001126,2]
[355988846,1741773044647,-152.809252,0.0001126,2]
[355988847,1741773044657,-151.0,0.0001126,2]
[355988848,1741773044668,-151.0,0.0001126,2]
[355988849,1741773044677,-151.0,0.0001126,2]
[355988850,1741773044686,-151.0,0.0001126,2]
[355988851,1741773044696,-151.0,0.0001126,2]
[355988852,1741773044705,-151.0,0.0001126,2]
[355988853,1741773044715,-151.0,0.0001126,2]
[355988854,1741773044724,-151.0,0.0001126,2]
[355988855,1741773044733,-151.0,0.0001126,2]
[355988856,1741773044743,-151.0,0.0001126,2]
[355988857,1741773044752,-151.0,0.0001126,2]
[355988858,1741773044762,-151.0,0.0001126,2]
[355988859,1741773044771,-151.0,0.0001126,2]
[355988860,1741773044781,-152.365175,0.0001126,2]
[355988861,1741773044790,-151.0,0.0001126,2]
[355988862,1741773044800,-151.0,0.0001126,2]
[355988863,1741773044810,-151.0,0.0001126,2]
[355988864,1741773044819,-151.554017,0.0001126,2]
[355988865,1741773044829,-125766.45061575,0.0001126,2]
[355988866,1741773044838,-151.0,0.0001126,2]
[355988867,1741773044847,-151.0,0.0001126,2]
[355988868,1741773044857,-151.0,0.0001126,2]
[355988869,1741773044867,-114018.95336976,0.0001126,2]
[355988870,1741773044876,-151.0,0.0001126,2]
[355988871,1741773044885,-1757.170745,0.0001126,2]
[355988872,1741773044895,-151.0,0.0001126,2]
[355988873,1741773044904,-1757.170745,0.0001126,2]
[355988874,1741773044914,-151.0,0.0001126,2]
[355988875,1741773044924,-151.0,0.0001126,2]
[355988876,1741773044933,-151.0,0.0001126,2]
[355988877,1741773044943,-151.0,0.00011261,2]
[355988878,1741773044954,-150.0,0.00011287,2]
[355988879,1741773044964,-587.0,0.00011302,2]
[355988880,1741773044975,-433.81336617,0.00011327,2]
[355988881,1741773044986,-1044.01,0.00011445,2]
[355988882,1741773044996,-178.0,0.0001148,2]
[355988883,1741773045006,-1335.37118288,0.00011488,2]
[355988884,1741773045017,-3000.0,0.000115,2]
[355988885,1741773045027,-3000.0,0.000115,2]
[355988886,1741773045037,-3000.0,0.000115,2]
[355988887,1741773045047,-3000.0,0.000115,2]
[355988888,1741773045058,-3000.0,0.000115,2]
[355988889,1741773045068,-1421.19,0.000115,2]
[355988890,1741773045078,-2751.0,0.00011507,2]
[355988891,1741773045088,-150.0,0.0001153,2]
[355988892,1741773045098,-168.3888056,0.00011644,2]
[355988893,1741773045108,-1044.01,0.00011719,2]
[355988894,1741773045117,-502.455724,0.00011728,14]
[355988895,1741773045127,-150.0,0.00011774,2]
[355988896,1741773045137,-539.99,0.00011777,2]
[355988897,1741773045147,-502.455724,0.00011784,2]
[355988898,1741773045157,-1044.01,0.00011993,2]
[355988899,1741773045167,-4960.62160717,0.00012,2]
[355988900,1741773045177,-151.76255846,0.00012,2]
[355988901,1741773045187,-3937.31843,0.00012,2]
[355988902,1741773045197,-300.0,0.00012,2]
[355988903,1741773045206,-800.0,0.00012,3]
[355988904,1741773045217,-500.0,0.00012,2]
[355988905,1741773045226,-500.0,0.00012,2]
[355988906,1741773045236,-5000.0,0.00012,2]
[355988907,1741773045246,-305.61,0.00012,5]
[355988908,1741773045255,-150.0,0.00012017,2]
[355988909,1741773045264,-45547.93,0.00012055,2]
[355988910,1741773045274,-353.019185,0.00012055,2]
[355988911,1741773045284,-353.019185,0.00012055,2]
[355988912,1741773045293,-151.0,0.00012055,2]
[355988913,1741773045303,-151.0,0.00012055,2]
[355988914,1741773045312,-333.823575,0.00012055,2]
[355988915,1741773045322,-333.823575,0.00012055,2]
[355988916,1741773045331,-151.0,0.00012055,2]
[355988917,1741773045343,-151.0,0.00012055,2]
[355988918,1741773045353,-203.710081,0.00012055,2]
[355988919,1741773045362,-151.0,0.00012055,2]
[355988920,1741773045371,-151.0,0.00012055,2]
[355988921,1741773045380,-151.0,0.00012055,2]
[355988922,1741773045389,-151.0,0.00012055,2]
[355988923,1741773045399,-164.973888,0.00012055,2]
[355988924,1741773045408,-152.545247,0.00012055,2]
[355988925,1741773045417,-151.0,0.00012055,2]
[355988926,1741773045426,-188.459037,0.00012055,2]
[355988927,1741773045435,-151.0,0.00012055,2]
[355988928,1741773045444,-213.376873,0.00012055,2]
[355988929,1741773045453,-151.0,0.00012055,2]
[355988930,1741773045462,-156.232124,0.00012055,2]
[355988931,1741773045471,-1757.170745,0.00012055,2]
[355988932,1741773045481,-151.0,0.00012055,2]
[355988933,1741773045490,-1757.170745,0.00012055,2]
[355988934,1741773045499,-151.0,0.00012055,2]
[355988935,1741773045508,-179.72654,0.00012055,2]
[355988936,1741773045518,-212.29476562,0.00012192,2]
[355988937,1741773045527,-150.0,0.0001226,2]
[355988938,1741773045536,-1044.01,0.00012267,2]
[355988939,1741773045546,-1000.0,0.00012271,2]
[355988940,1741773045556,-502.455724,0.00012276,14]
[355988941,1741773045565,-353.019185,0.0001234,2]
[355988942,1741773045574,-353.019185,0.0001234,2]
[355988943,1741773045584,-353.019185,0.0001234,2]
[355988944,1741773045593,-353.019185,0.0001234,2]
[355988945,1741773045602,-245.534629,0.0001234,2]
[355988946,1741773045612,-151.151543,0.0001234,2]
[355988947,1741773045622,-333.823575,0.0001234,2]
[355988948,1741773045631,-333.823575,0.0001234,2]
[355988949,1741773045640,-333.823575,0.0001234,2]
[355988950,1741773045649,-333.823575,0.0001234,2]
[355988951,1741773045659,-151.0,0.0001234,2]
[355988952,1741773045671,-151.0,0.0001234,2]
[355988953,1741773045681,-151.0,0.0001234,2]
[355988954,1741773045690,-151.0,0.0001234,2]
[355988955,1741773045699,-151.0,0.0001234,2]
[355988956,1741773045709,-151.0,0.0001234,2]
[355988957,1741773045719,-151.0,0.0001234,2]
[355988958,1741773045728,-189.665382,0.0001234,2]
[355988959,1741773045738,-151.0,0.0001234,2]
[355988960,1741773045748,-151.0,0.0001234,2]
[355988961,1741773045757,-151.0,0.0001234,2]
[355988962,1741773045767,-152.847207,0.0001234,2]
[355988963,1741773045781,-125766.45061575,0.0001234,2]
[355988964,1741773045791,-151.0,0.0001234,2]
[355988965,1741773045801,-151.0,0.0001234,2]
[355988967,1741773045810,-151.0,0.0001234,2]
[355988969,1741773045820,-209.301045,0.0001234,2]
[355988971,1741773045830,-209.301045,0.0001234,2]
[355988973,1741773045840,-151.0,0.0001234,2]
[355988975,1741773045849,-151.0,0.0001234,2]
[355988977,1741773045859,-151.0,0.0001234,2]
[355988978,1741773045869,-151.0,0.0001234,2]
[355988979,1741773045879,-151.0,0.0001234,2]
[355988980,1741773045890,-151.0,0.0001234,2]
[355988981,1741773045899,-114018.95336976,0.0001234,2]
[355988982,1741773045909,-1757.170745,0.0001234,2]
[355988983,1741773045919,-151.0,0.0001234,2]
[355988984,1741773045928,-1757.170745,0.0001234,2]
[355988985,1741773045938,-151.0,0.0001234,2]
[355988986,1741773045947,-6204.0,0.00012397,3]
[355988987,1741773045957,-823.0,0.00012433,2]
[355988988,1741773045970,-2000.0,0.0001244,5]
[355988989,1741773045983,-295.29740993,0.000125,2]
[355988990,1741773045993,-900.0,0.000125,5]
[355988991,1741773046002,-150.0,0.00012503,2]
[355988992,1741773046013,-1044.01,0.00012541,2]
[355988993,1741773046023,-178.0,0.00012628,2]
[355988994,1741773046032,-1035.92,0.00012655,2]
[355988995,1741773046041,-7272.08318103,0.00012699,2]
[355988996,1741773046051,-150.0,0.00012746,2]
[355988997,1741773046060,-157.5982938,0.00012784,2]
[355988998,1741773046070,-1335.37118288,0.00012796,2]
[355988999,1741773046080,-1044.01,0.00012815,2]
[355989000,1741773046090,-502.455724,0.00012824,14]
[355989001,1741773046099,-3000.0,0.000129,4]
[355989002,1741773046109,-539.99,0.00012954,2]
[355989003,1741773046118,-150.0,0.00012989,2]
[355989004,1741773046128,-4249.52007566,0.00013,2]
[355989005,1741773046138,-3045.04578334,0.00013,2]
[355989006,1741773046148,-392.6686883,0.00013,2]
[355989007,1741773046157,-650.0,0.00013,2]
[355989008,1741773046167,-444.51,0.00013,2]
[355989009,1741773046177,-444.51,0.00013,2]
[355989010,1741773046186,-444.51,0.00013,2]
[355989011,1741773046196,-444.51,0.00013,2]
[355989012,1741773046205,-444.51,0.00013,2]
[355989013,1741773046215,-444.51,0.00013,2]
[355989014,1741773046224,-444.51,0.00013,2]
[355989015,1741773046234,-444.51,0.00013,2]
[355989016,1741773046243,-444.51,0.00013,2]
[355989017,1741773046252,-444.51,0.00013,2]
[355989018,1741773046261,-444.51,0.00013,2]
[355989019,1741773046270,-444.51,0.00013,2]
[355989020,1741773046280,-444.51,0.00013,2]
[355989021,1741773046289,-444.51,0.00013,2]
[355989022,1741773046299,-444.51,0.00013,2]
[355989023,1741773046308,-444.51,0.00013,2]
[355989024,1741773046318,-5131.22466655,0.0001305,2]
[355989025,1741773046328,-1044.01,0.00013089,2]
[355989026,1741773046344,-500.0,0.00013154,2]
[355989027,1741773046353,-1068.37,0.00013175,2]
[355989028,1741773046363,-150.0,0.00013232,2]
[355989029,1741773046372,-9999.999999,0.00013333,5]
[355989030,1741773046382,-297.42,0.00013347,2]
[355989031,1741773046391,-444.51,0.00013358,2]
[355989032,1741773046401,-1044.01,0.00013363,2]
[355989033,1741773046411,-353.019185,0.00013368,2]
[355989034,1741773046422,-353.019185,0.00013368,2]
[355989035,1741773046432,-333.823575,0.00013368,2]
[355989036,1741773046441,-333.823575,0.00013368,2]
[355989037,1741773046450,-179.489923,0.00013368,2]
[355989038,1741773046459,-151.0,0.00013368,2]
[355989039,1741773046469,-151.0,0.00013368,2]
[355989040,1741773046478,-151.585576,0.00013368,2]
[355989041,1741773046488,-151.0,0.00013368,2]
[355989042,1741773046497,-151.0,0.00013368,2]
[355989043,1741773046507,-151.0,0.00013368,2]
[355989044,1741773046516,-151.0,0.00013368,2]
[355989045,1741773046526,-153.610791,0.00013368,2]
[355989046,1741773046535,-209.301045,0.00013368,2]
[355989048,1741773046544,-209.301045,0.00013368,2]
[355989049,1741773046553,-151.0,0.00013368,2]
[355989050,1741773046562,-151.0,0.00013368,2]
[355989051,1741773046572,-151.0,0.00013368,2]
[355989052,1741773046581,-151.0,0.00013368,2]
[355989053,1741773046591,-151.0,0.00013368,2]
[355989054,1741773046600,-151.0,0.00013368,2]
[355989055,1741773046610,-1757.170745,0.00013368,2]
[355989056,1741773046620,-151.0,0.00013368,2]
[355989057,1741773046629,-1757.170745,0.00013368,2]
[355989058,1741773046639,-151.0,0.00013368,2]
[355989059,1741773046648,-48355.79115665,0.00013368,2]
[355989060,1741773046658,-150.942088,0.00013372,14]
[355989061,1741773046668,-502.455724,0.00013372,14]
[355989062,1741773046678,-1000.0,0.00013386,2]
[355989063,1741773046688,-444.51,0.0001341,2]
[355989064,1741773046698,-444.51,0.0001341,2]
[355989065,1741773046707,-353.019185,0.0001342,2]
[355989066,1741773046716,-353.019185,0.0001342,2]
[355989067,1741773046726,-353.019185,0.0001342,2]
[355989068,1741773046735,-353.019185,0.0001342,2]
[355989069,1741773046745,-333.823575,0.0001342,2]
[355989070,1741773046755,-333.823575,0.0001342,2]
[355989071,1741773046764,-151.0,0.0001342,2]
[355989072,1741773046774,-151.0,0.0001342,2]
[355989073,1741773046783,-151.0,0.0001342,2]
[355989074,1741773046792,-151.0,0.0001342,2]
[355989075,1741773046802,-153.592731,0.0001342,2]
[355989076,1741773046811,-219.031525,0.0001342,2]
[355989077,1741773046820,-125766.45061575,0.0001342,2]
[355989078,1741773046830,-151.0,0.0001342,2]
[355989079,1741773046839,-151.0,0.0001342,2]
[355989080,1741773046849,-209.301045,0.0001342,2]
[355989081,1741773046858,-209.301045,0.0001342,2]
[355989082,1741773046868,-151.0,0.0001342,2]
[355989083,1741773046878,-151.0,0.0001342,2]
[355989084,1741773046887,-151.0,0.0001342,2]
[355989085,1741773046896,-151.0,0.0001342,2]
[355989086,1741773046906,-291.953492,0.0001342,2]
[355989087,1741773046915,-151.0,0.0001342,2]
[355989088,1741773046924,-114018.95336976,0.0001342,2]
[355989089,1741773046933,-1757.170745,0.0001342,2]
[355989090,1741773046942,-151.0,0.0001342,2]
[355989091,1741773046951,-1757.170745,0.0001342,2]
[355989092,1741773046960,-247.235897,0.0001342,2]
[355989093,1741773046974,-276.56875377,0.00013428,2]
[355989094,1741773046986,-150.0,0.00013475,2]
[355989095,1741773046996,-1000.0,0.000135,2]
[355989096,1741773047005,-502.455724,0.00013569,2]
[355989097,1741773047015,-1044.01,0.00013637,2]